[Event "Swedish Chess Championship 2019: Veteran-SM 65+"]
[Site "Stiga Sports Arena, Arenatorget 1, Eskilstuna, Sweden"]
[Date "2019.07.09"]
[Round "4.2"]
[White "Amnell, Mats"]
[Black "Lagerborg, Krister"]
[Result "0-1"]
[TimeControl "90 minutes for 40 moves + 30 minutes for the rest of the game + 30 seconds per move from move one"]
[WhiteFideId "1717316"]
[BlackFideId "1712411"]
[WhiteElo "1770"]
[BlackElo "2129"]

1. e4 {[%clk 01:30:57]} {[%emt 00:00:02]} c5 {[%clk 01:30:54]} {[%emt
00:00:12]} 2. c3 {[%clk 01:30:48]} {[%emt 00:01:25]} d6 {[%clk 01:30:31]}
{[%emt 00:02:16]} 3. d4 {[%clk 01:30:50]} {[%emt 00:01:14]} Nd7 {[%clk
01:30:55]} {[%emt 00:00:16]} 4. Nf3 {[%clk 01:30:42]} {[%emt 00:02:01]} g6
{[%clk 01:31:03]} 5. Bc4 {[%clk 01:29:20]} e6 {[%clk 01:30:48]} 6. O-O {[%clk
01:29:03]} {[%emt 00:00:05]} a6 {[%clk 01:29:35]} {[%emt 00:00:43]} 7. a4
{[%clk 01:28:35]} {[%emt 00:00:58]} b6 {[%clk 01:29:30]} {[%emt 00:00:35]} 8.
Bg5 {[%clk 01:28:17]} {[%emt 00:00:48]} Qc7 {[%clk 01:26:31]} {[%emt 00:03:29]}
9. Nbd2 {[%clk 01:25:42]} {[%emt 00:03:05]} h6 {[%clk 01:24:04]} {[%emt
00:02:57]} 10. Bf4 {[%clk 01:20:57]} {[%emt 00:05:16]} Ne7 {[%clk 01:22:30]}
{[%emt 00:02:03]} 11. h3 {[%clk 01:16:51]} {[%emt 00:04:35]} Bg7 {[%clk
01:17:21]} {[%emt 00:05:39]} 12. b4 {[%clk 01:05:14]} {[%emt 00:12:07]} O-O
{[%clk 01:12:24]} {[%emt 00:05:27]} 13. Qb3 {[%clk 00:55:39]} {[%emt 00:10:05]}
Nf6 {[%clk 01:07:36]} {[%emt 00:05:17]} 14. e5 {[%clk 00:53:20]} {[%emt
00:02:50]} dxe5 {[%clk 01:06:58]} {[%emt 00:01:08]} 15. Bxe5 {[%clk 00:47:48]}
{[%emt 00:06:02]} Qa7 {[%clk 01:03:10]} {[%emt 00:04:18]} 16. bxc5 {[%clk
00:44:37]} {[%emt 00:03:42]} bxc5 {[%clk 01:02:16]} {[%emt 00:01:24]} 17. Bxf6
{[%clk 00:42:15]} {[%emt 00:02:51]} Bxf6 {[%clk 01:02:20]} {[%emt 00:00:26]} 18.
Ne4 {[%clk 00:42:28]} {[%emt 00:00:17]} Bg7 {[%clk 01:02:14]} {[%emt 00:00:36]}
19. Nxc5 {[%clk 00:38:33]} {[%emt 00:04:25]} Rb8 {[%clk 01:02:25]} {[%emt
00:00:19]} 20. Qc2 {[%clk 00:36:51]} {[%emt 00:02:12]} e5 {[%clk 01:00:51]}
{[%emt 00:02:04]} 21. Rfe1 {[%clk 00:27:40]} {[%emt 00:09:41]} exd4 {[%clk
00:56:58]} {[%emt 00:04:24]} 22. cxd4 {[%clk 00:27:53]} {[%emt 00:00:17]} Bf5
{[%clk 00:54:56]} {[%emt 00:02:31]} 23. Bd3 {[%clk 00:23:14]} {[%emt 00:05:09]}
Rfd8 {[%clk 00:50:05]} {[%emt 00:05:21]} 24. Bxf5 {[%clk 00:14:16]} {[%emt
00:09:28]} Nxf5 {[%clk 00:50:12]} {[%emt 00:00:23]} 25. Nb3 {[%clk 00:02:36]}
{[%emt 00:12:11]} Rbc8 {[%clk 00:50:19]} {[%emt 00:00:22]} 26. Qd3 {[%clk
00:02:14]} {[%emt 00:00:52]} Nxd4 {[%clk 00:48:50]} {[%emt 00:02:00]} 27. Nbxd4
{[%clk 00:01:58]} {[%emt 00:00:45]} Bxd4 {[%clk 00:49:13]} {[%emt 00:00:07]} 28.
Nxd4 {[%clk 00:01:53]} {[%emt 00:00:35]} Rxd4 {[%clk 00:49:35]} {[%emt
00:00:08]} 29. Qe3 {[%clk 00:02:01]} {[%emt 00:00:22]} h5 {[%clk 00:47:42]}
{[%emt 00:02:23]} 30. Rec1 {[%clk 00:01:28]} {[%emt 00:01:03]} Rcd8 {[%clk
00:47:13]} {[%emt 00:00:59]} 31. a5 {[%clk 00:01:05]} {[%emt 00:00:54]} Qd7
{[%clk 00:46:43]} {[%emt 00:00:59]} 32. Qe5 {[%clk 00:00:50]} {[%emt 00:00:44]}
Rd5 {[%clk 00:43:42]} {[%emt 00:03:32]} 33. Qe2 {[%clk 00:01:07]} {[%emt
00:00:13]} Rb5 {[%clk 00:40:18]} {[%emt 00:03:54]} 34. Rd1 {[%clk 00:00:44]}
{[%emt 00:00:52]} Qe8 {[%clk 00:40:23]} {[%emt 00:00:24]} 35. Rxd8 {[%clk
00:00:51]} {[%emt 00:00:24]} Qxd8 {[%clk 00:40:47]} {[%emt 00:00:06]} 36. Qa2
{[%clk 00:00:43]} {[%emt 00:00:37]} Qd5 {[%clk 00:39:36]} {[%emt 00:01:42]} 37.
Qxd5 {[%clk 00:00:35]} {[%emt 00:00:39]} Rxd5 {[%clk 00:39:59]} {[%emt
00:00:06]} {time forfeit} 0-1

[Event "Swedish Chess Championship 2019: Veteran-SM 65+"]
[Site "Stiga Sports Arena, Arenatorget 1, Eskilstuna, Sweden"]
[Date "2019.07.09"]
[Round "4.3"]
[White "Gromark, Jonas"]
[Black "Adolfsson, Kjell"]
[Result "0-1"]
[TimeControl "90 minutes for 40 moves + 30 minutes for the rest of the game + 30 seconds per move from move one"]
[WhiteFideId "137122733"]
[BlackFideId "1714961"]
[WhiteElo "1833"]
[BlackElo "1895"]

1. e4 {[%clk 01:30:28]} {[%emt 00:00:44]} e6 {[%clk 01:30:39]} {[%emt
00:00:43]} 2. d3 {[%clk 01:30:21]} {[%emt 00:01:31]} c5 {[%clk 01:30:45]}
{[%emt 00:01:00]} 3. Qe2 {[%clk 01:28:58]} {[%emt 00:03:55]} Nc6 {[%clk
01:30:02]} 4. c3 {[%clk 01:29:02]} d6 {[%clk 01:30:00]} 5. Nf3 {[%clk
01:27:31]} {[%emt 00:00:12]} Nge7 {[%clk 01:28:33]} {[%emt 00:01:47]} 6. g3
{[%clk 01:26:34]} {[%emt 00:01:28]} Ng6 {[%clk 01:23:31]} {[%emt 00:05:31]} 7.
Bg2 {[%clk 01:25:57]} {[%emt 00:01:07]} Be7 {[%clk 01:22:51]} {[%emt 00:01:10]}
8. O-O {[%clk 01:20:49]} {[%emt 00:05:39]} Qc7 {[%clk 01:17:06]} {[%emt
00:06:15]} 9. Be3 {[%clk 01:17:57]} {[%emt 00:03:21]} Bd7 {[%clk 01:12:57]}
{[%emt 00:04:40]} 10. d4 {[%clk 01:14:05]} {[%emt 00:04:22]} O-O {[%clk
01:08:31]} {[%emt 00:04:56]} 11. h4 {[%emt 00:11:08]} Nh8 {[%clk 01:01:08]}
{[%emt 00:02:43]} 12. Nbd2 {[%emt 00:11:14]} Rae8 {[%clk 00:49:44]} {[%emt
00:02:41]} 13. d5 {[%clk 00:52:53]} {[%emt 00:14:42]} exd5 {[%clk 00:42:05]}
{[%emt 00:08:10]} 14. exd5 {[%clk 00:52:56]} {[%emt 00:00:26]} Nb8 {[%clk
00:38:34]} {[%emt 00:04:01]} 15. Qd3 {[%clk 00:47:46]} {[%emt 00:05:40]} f5
{[%clk 00:35:05]} {[%emt 00:04:00]} 16. h5 {[%clk 00:43:10]} {[%emt 00:05:05]}
Nf7 {[%clk 00:34:57]} {[%emt 00:00:38]} 17. Qc2 {[%clk 00:39:52]} {[%emt
00:03:49]} Bf6 {[%clk 00:33:33]} {[%emt 00:01:53]} 18. Nh4 {[%clk 00:33:03]}
{[%emt 00:07:19]} Bxh4 {[%clk 00:29:34]} {[%emt 00:04:29]} 19. gxh4 {[%clk
00:33:23]} {[%emt 00:00:10]} Ne5 {[%clk 00:29:40]} {[%emt 00:00:24]} 20. Bf4
{[%clk 00:30:36]} {[%emt 00:03:17]} c4 {[%clk 00:22:36]} {[%emt 00:07:34]} 21.
Nf3 {[%clk 00:26:28]} {[%emt 00:04:37]} Nd3 {[%clk 00:21:55]} {[%emt 00:01:11]}
22. Be3 {[%clk 00:23:46]} {[%emt 00:03:13]} Re4 {[%emt 00:12:58]} 23. h6 {[%clk
00:14:47]} {[%emt 00:00:40]} Rg4 {[%clk 00:15:25]} {[%emt 00:03:21]} 24. hxg7
{[%clk 00:13:15]} {[%emt 00:02:02]} Rf6 {[%clk 00:14:15]} {[%emt 00:01:40]} 25.
Bg5 {[%clk 00:11:39]} {[%emt 00:02:06]} Rg6 {[%clk 00:13:42]} {[%emt 00:01:03]}
26. Nh2 {[%clk 00:11:29]} {[%emt 00:00:40]} Rxg2+ {[%clk 00:13:38]} {[%emt
00:00:35]} 27. Kxg2 {[%clk 00:11:46]} {[%emt 00:00:11]} h6 {[%clk 00:14:00]}
{[%emt 00:00:09]} 28. f4 {[%clk 00:10:19]} {[%emt 00:01:57]} Qc5 {[%clk
00:14:21]} {[%emt 00:00:09]} 29. Kh1 {[%clk 00:08:55]} {[%emt 00:01:54]} Qxd5+
{[%clk 00:12:25]} {[%emt 00:02:26]} 30. Qg2 {[%clk 00:08:09]} {[%emt 00:01:15]}
Qxg2+ {[%clk 00:12:45]} {[%emt 00:00:11]} 31. Kxg2 {[%clk 00:08:37]} {[%emt
00:00:02]} Rxg7 {[%clk 00:11:05]} {[%emt 00:02:10]} 32. Nf3 {[%clk 00:07:41]}
{[%emt 00:01:25]} Nxf4+ {[%clk 00:10:27]} {[%emt 00:01:07]} 33. Kf2 {[%clk
00:06:45]} {[%emt 00:01:25]} hxg5 {[%clk 00:10:16]} {[%emt 00:00:42]} 34. Nxg5
{[%clk 00:06:32]} {[%emt 00:00:43]} Nd3+ {[%clk 00:09:52]} {[%emt 00:00:54]} 35.
Ke3 {[%clk 00:05:57]} {[%emt 00:01:04]} Nc6 {[%clk 00:09:30]} {[%emt 00:00:53]}
36. b3 {[%clk 00:05:45]} {[%emt 00:00:42]} b5 {[%clk 00:07:44]} {[%emt
00:02:15]} 37. a4 {[%clk 00:05:17]} {[%emt 00:00:59]} Nce5 {[%clk 00:06:22]}
{[%emt 00:01:52]} 38. bxc4 {[%clk 00:03:48]} {[%emt 00:01:58]} bxc4 {[%clk
00:06:43]} {[%emt 00:00:11]} 39. Rab1 {[%emt 00:02:16]} Nc6 {[%emt 00:01:13]}
40. Rb5 {[%emt 00:02:20]} Re7+ {[%emt 00:01:15]} 41. Kd2 {[%clk 00:01:58]} Nc5
{[%clk 00:01:43]} {[%emt 00:02:44]} 42. h5 {[%clk 00:27:17]} {[%emt 00:05:11]}
Rg7 {[%clk 00:28:33]} {[%emt 00:03:40]} 43. Nh3 {[%clk 00:23:30]} {[%emt
00:04:17]} Rg2+ {[%clk 00:26:50]} {[%emt 00:02:12]} 44. Kd1 {[%clk 00:20:29]}
{[%emt 00:03:32]} Nxa4 {[%clk 00:21:18]} {[%emt 00:06:01]} 45. Rb7 {[%clk
00:20:04]} {[%emt 00:00:56]} Nxc3+ {[%clk 00:20:14]} {[%emt 00:01:35]} 46. Kc1
{[%clk 00:20:20]} {[%emt 00:00:14]} Nd4 {[%clk 00:15:34]} {[%emt 00:05:08]} 47.
Nf2 {[%clk 00:16:01]} {[%emt 00:04:50]} Bc6 {[%clk 00:11:36]} {[%emt 00:04:29]}
48. Rxa7 {[%clk 00:14:14]} {[%emt 00:02:17]} Nce2+ {[%clk 00:11:04]} {[%emt
00:01:07]} 49. Kd2 {[%emt 00:03:57]} c3+ {[%emt 00:00:01]} 50. Ke3 Rg3# {[%emt
00:00:02]} 0-1

[Event "Swedish Chess Championship 2019: Veteran-SM 65+"]
[Site "Stiga Sports Arena, Arenatorget 1, Eskilstuna, Sweden"]
[Date "2019.07.09"]
[Round "4.4"]
[White "Moborn, Anders"]
[Black "Svensson, Hakan"]
[Result "0-1"]
[TimeControl "90 minutes for 40 moves + 30 minutes for the rest of the game + 30 seconds per move from move one"]
[WhiteFideId "1706349"]
[BlackFideId "1714201"]
[WhiteElo "2034"]
[BlackElo "2056"]

1. d4 {[%clk 01:30:54]} {[%emt 00:00:05]} d5 {[%clk 01:30:43]} {[%emt
00:00:20]} 2. c4 {[%clk 01:31:02]} {[%emt 00:00:37]} e6 {[%clk 01:31:07]}
{[%emt 00:00:11]} 3. Nc3 {[%clk 01:31:14]} {[%emt 00:00:40]} Nf6 {[%clk
01:31:28]} {[%emt 00:00:19]} 4. Nf3 {[%clk 01:31:05]} {[%emt 00:01:44]} c6
{[%clk 01:31:48]} {[%emt 00:00:23]} 5. e3 {[%clk 01:30:50]} {[%emt 00:02:05]}
Nbd7 {[%clk 01:32:11]} {[%emt 00:01:41]} 6. Bd3 {[%clk 01:30:55]} dxc4 {[%clk
01:32:32]} 7. Bxc4 {[%clk 01:31:20]} b5 {[%clk 01:32:56]} 8. Bd3 {[%clk
01:31:17]} a6 {[%clk 01:32:01]} 9. e4 {[%clk 01:23:47]} {[%emt 00:05:38]} c5
{[%clk 01:32:14]} {[%emt 00:00:17]} 10. d5 {[%clk 01:15:48]} {[%emt 00:08:29]}
c4 {[%clk 01:31:47]} {[%emt 00:00:55]} 11. Bc2 {[%clk 01:09:55]} {[%emt
00:06:24]} Qc7 {[%clk 01:31:23]} {[%emt 00:00:54]} 12. dxe6 {[%clk 01:09:09]}
{[%emt 00:01:17]} fxe6 {[%clk 01:31:45]} {[%emt 00:00:08]} 13. Ng5 {[%clk
00:59:30]} {[%emt 00:10:08]} Nc5 {[%clk 01:31:01]} {[%emt 00:01:14]} 14. Qe2
{[%clk 00:57:24]} {[%emt 00:02:37]} h6 {[%clk 01:22:33]} {[%emt 00:08:58]} 15.
Nf3 {[%clk 00:41:22]} {[%emt 00:16:32]} Bb7 {[%clk 01:20:30]} {[%emt 00:02:31]}
16. e5 {[%clk 00:36:41]} {[%emt 00:05:13]} Nd5 {[%clk 01:17:09]} {[%emt
00:03:51]} 17. Bg6+ {[%clk 00:34:52]} {[%emt 00:02:19]} Kd7 {[%clk 01:15:49]}
{[%emt 00:01:50]} 18. O-O {[%clk 00:32:49]} {[%emt 00:02:34]} Rd8 {[%clk
01:05:25]} {[%emt 00:10:54]} 19. Nd4 {[%clk 00:24:17]} {[%emt 00:09:01]} Kc8
{[%clk 01:01:00]} {[%emt 00:04:55]} 20. f4 {[%clk 00:18:42]} {[%emt 00:06:05]}
Ne7 {[%clk 00:56:12]} {[%emt 00:05:18]} 21. Nxe6 {[%clk 00:15:03]} {[%emt
00:04:09]} Nxe6 {[%clk 00:56:09]} {[%emt 00:00:33]} 22. Qg4 {[%clk 00:15:14]}
{[%emt 00:00:19]} Qb6+ {[%clk 00:54:40]} {[%emt 00:01:58]} 23. Kh1 {[%clk
00:15:25]} {[%emt 00:00:19]} Nxg6 {[%clk 00:53:47]} {[%emt 00:01:21]} 24. Qxg6
{[%clk 00:15:38]} {[%emt 00:00:18]} Bc5 {[%clk 00:49:52]} {[%emt 00:04:24]} 25.
f5 {[%clk 00:13:00]} {[%emt 00:03:09]} Ng5 {[%clk 00:45:39]} {[%emt 00:04:35]}
26. f6 {[%clk 00:10:42]} {[%emt 00:02:56]} Qc6 {[%clk 00:39:21]} {[%emt
00:06:46]} 27. Qc2 {[%clk 00:10:08]} {[%emt 00:01:06]} gxf6 {[%clk 00:35:43]}
{[%emt 00:04:07]} 28. Rxf6 {[%clk 00:09:48]} {[%emt 00:00:52]} Ne6 {[%clk
00:33:27]} {[%emt 00:02:44]} 29. Bxh6 {[%clk 00:09:43]} {[%emt 00:00:37]} Rdg8
{[%clk 00:31:44]} {[%emt 00:02:12]} 30. Rg6 {[%clk 00:09:36]} {[%emt 00:00:39]}
Rxg6 {[%clk 00:29:42]} {[%emt 00:02:31]} 31. Qxg6 {[%clk 00:09:59]} {[%emt
00:00:07]} Rxh6 {[%clk 00:29:51]} {[%emt 00:00:21]} 0-1

[Event "Swedish Chess Championship 2019: Veteran-SM 65+"]
[Site "Stiga Sports Arena, Arenatorget 1, Eskilstuna, Sweden"]
[Date "2019.07.10"]
[Round "5.1"]
[White "Gajic, Zoran"]
[Black "Andersson, Kjell-Ake"]
[Result "0-1"]
[TimeControl "90 minutes for 40 moves + 30 minutes for the rest of the game + 30 seconds per move from move one"]
[WhiteFideId "1718304"]
[BlackFideId "1713825"]
[WhiteElo "1936"]
[BlackElo "1859"]

1. d4 {[%clk 01:30:57]} {[%emt 00:00:03]} e6 {[%clk 01:30:49]} {[%emt
00:00:18]} 2. Nc3 {[%clk 01:31:04]} {[%emt 00:00:54]} d5 {[%clk 01:30:50]}
{[%emt 00:01:26]} 3. Bf4 {[%clk 01:31:28]} {[%emt 00:00:23]} Nf6 {[%clk
01:30:21]} {[%emt 00:03:30]} 4. e3 {[%clk 01:31:41]} Be7 {[%clk 01:29:44]} 5.
Bd3 {[%clk 01:31:48]} O-O {[%clk 01:29:31]} 6. Nf3 {[%clk 01:31:59]} c5 {[%clk
01:26:47]} {[%emt 00:01:52]} 7. Nb5 {[%clk 01:32:16]} {[%emt 00:00:01]} Ne8
{[%clk 01:26:59]} {[%emt 00:00:18]} 8. dxc5 {[%clk 01:25:01]} {[%emt 00:07:45]}
a6 {[%clk 01:25:13]} {[%emt 00:02:16]} 9. Nbd4 {[%clk 01:23:27]} {[%emt
00:02:05]} Bxc5 {[%clk 01:24:34]} {[%emt 00:01:08]} 10. Ng5 {[%clk 01:21:49]}
{[%emt 00:02:08]} Nf6 {[%clk 01:23:24]} {[%emt 00:01:39]} 11. c3 {[%clk
01:08:06]} {[%emt 00:14:15]} Nc6 {[%clk 01:18:09]} {[%emt 00:05:43]} 12. Qc2
{[%clk 01:06:01]} {[%emt 00:02:35]} h6 {[%clk 01:18:02]} {[%emt 00:00:37]} 13.
Ngf3 {[%clk 00:57:25]} {[%emt 00:09:07]} Bd7 {[%clk 01:13:55]} {[%emt
00:04:35]} 14. g4 {[%clk 00:54:34]} {[%emt 00:03:23]} Nxd4 {[%clk 01:11:09]}
{[%emt 00:03:16]} 15. exd4 {[%clk 00:54:31]} {[%emt 00:00:33]} Be7 {[%clk
01:11:18]} {[%emt 00:00:21]} 16. Rg1 {[%clk 00:54:02]} {[%emt 00:00:58]} Bb5
{[%clk 01:08:18]} {[%emt 00:03:30]} 17. g5 {[%clk 00:51:37]} {[%emt 00:02:56]}
hxg5 {[%clk 01:04:34]} {[%emt 00:04:14]} 18. Bxg5 {[%clk 00:46:15]} {[%emt
00:05:52]} Bxd3 {[%clk 01:01:41]} {[%emt 00:03:22]} 19. Qxd3 {[%clk 00:46:26]}
{[%emt 00:00:20]} Ne4 {[%clk 01:00:27]} {[%emt 00:01:42]} 20. h4 {[%clk
00:42:15]} {[%emt 00:04:41]} b5 {[%clk 00:56:08]} {[%emt 00:04:50]} 21. Bh6
{[%clk 00:42:18]} {[%emt 00:00:27]} Bf6 {[%clk 00:55:17]} {[%emt 00:01:21]} 22.
h5 {[%clk 00:40:44]} {[%emt 00:02:04]} Kh8 {[%clk 00:54:29]} {[%emt 00:01:17]}
23. Qe3 {[%clk 00:38:16]} {[%emt 00:02:57]} a5 {[%clk 00:47:43]} {[%emt
00:07:18]} 24. Ne5 {[%clk 00:29:47]} {[%emt 00:09:00]} b4 {[%clk 00:44:13]}
{[%emt 00:04:00]} 25. f3 {[%clk 00:17:12]} {[%emt 00:13:05]} Nd6 {[%clk
00:42:03]} {[%emt 00:02:39]} 26. Ng4 {[%clk 00:08:25]} {[%emt 00:09:18]} Nf5
{[%clk 00:40:24]} {[%emt 00:02:08]} 27. Qf4 {[%clk 00:08:35]} {[%emt 00:00:21]}
gxh6 {[%clk 00:36:50]} {[%emt 00:04:03]} 28. Nxh6 {[%clk 00:08:53]} {[%emt
00:00:12]} Bh4+ {[%clk 00:36:10]} {[%emt 00:01:10]} 29. Kd2 {[%clk 00:07:29]}
{[%emt 00:01:54]} Qb8 {[%clk 00:35:44]} {[%emt 00:00:56]} 30. Qxb8 {[%clk
00:02:28]} {[%emt 00:05:32]} bxc3+ {[%clk 00:33:18]} {[%emt 00:02:56]} 0-1

[Event "Swedish Chess Championship 2019: Veteran-SM 65+"]
[Site "Stiga Sports Arena, Arenatorget 1, Eskilstuna, Sweden"]
[Date "2019.07.10"]
[Round "5.2"]
[White "Wedin, Svante"]
[Black "Amnell, Mats"]
[Result "1-0"]
[TimeControl "90 minutes for 40 moves + 30 minutes for the rest of the game + 30 seconds per move from move one"]
[WhiteFideId "1711989"]
[BlackFideId "1717316"]
[WhiteElo "2003"]
[BlackElo "1770"]

1. e4 {[%clk 01:30:58]} {[%emt 00:00:02]} d6 {[%clk 01:30:47]} {[%emt
00:00:20]} 2. d4 {[%clk 01:31:17]} {[%emt 00:00:30]} Nf6 {[%clk 01:31:00]}
{[%emt 00:00:36]} 3. Nc3 {[%clk 01:30:30]} {[%emt 00:05:04]} g6 {[%clk
01:31:06]} 4. f4 {[%clk 01:30:46]} Bg7 {[%clk 01:31:07]} 5. Nf3 {[%clk
01:31:09]} O-O {[%clk 01:31:05]} 6. Be2 {[%clk 01:31:13]} c5 {[%clk 01:30:22]}
{[%emt 00:00:02]} 7. d5 {[%clk 01:28:50]} {[%emt 00:01:49]} Bg4 {[%clk
01:28:25]} {[%emt 00:02:19]} 8. O-O {[%clk 01:29:04]} {[%emt 00:00:16]} Nbd7
{[%clk 01:25:38]} {[%emt 00:03:17]} 9. Nd2 {[%clk 01:22:52]} {[%emt 00:06:42]}
Bxe2 {[%clk 01:22:56]} {[%emt 00:03:13]} 10. Qxe2 {[%clk 01:12:57]} {[%emt
00:10:25]} a6 {[%clk 01:16:46]} {[%emt 00:06:39]} 11. a4 {[%clk 01:13:10]}
{[%emt 00:00:18]} Ne8 {[%clk 01:16:11]} {[%emt 00:01:04]} 12. Nc4 {[%clk
01:08:50]} {[%emt 00:04:50]} Nc7 {[%clk 01:01:14]} {[%emt 00:15:27]} 13. Be3
{[%clk 00:49:58]} {[%emt 00:19:22]} b5 {[%clk 00:58:04]} {[%emt 00:03:40]} 14.
Na5 {[%clk 00:46:27]} {[%emt 00:04:01]} b4 {[%clk 00:52:05]} {[%emt 00:06:29]}
15. Nc6 {[%clk 00:46:25]} {[%emt 00:00:33]} Qe8 {[%clk 00:51:28]} {[%emt
00:01:06]} 16. Nd1 {[%clk 00:46:29]} {[%emt 00:00:25]} e6 {[%clk 00:41:13]}
{[%emt 00:10:45]} 17. dxe6 {[%clk 00:39:02]} {[%emt 00:07:59]} Qxe6 {[%clk
00:38:48]} {[%emt 00:02:53]} 18. Qd2 {[%clk 00:28:51]} {[%emt 00:10:42]} d5
{[%clk 00:30:59]} {[%emt 00:08:19]} 19. exd5 {[%clk 00:28:39]} {[%emt
00:00:41]} Qd6 {[%clk 00:22:52]} {[%emt 00:08:37]} 20. c4 {[%clk 00:21:06]}
{[%emt 00:08:04]} bxc3 {[%clk 00:18:12]} {[%emt 00:05:10]} 21. Nxc3 {[%clk
00:19:50]} {[%emt 00:01:46]} f5 {[%clk 00:13:35]} {[%emt 00:05:06]} 22. Rad1
{[%clk 00:18:30]} {[%emt 00:01:50]} Rfe8 {[%clk 00:13:29]} {[%emt 00:00:37]} 23.
Bf2 {[%clk 00:18:26]} {[%emt 00:00:34]} Rac8 {[%clk 00:11:01]} {[%emt
00:02:57]} 24. Rfe1 {[%clk 00:15:17]} {[%emt 00:03:40]} Nf6 {[%clk 00:10:05]}
{[%emt 00:01:26]} 25. Na5 {[%clk 00:11:26]} {[%emt 00:04:21]} Rxe1+ {[%clk
00:03:20]} {[%emt 00:07:15]} 26. Bxe1 {[%clk 00:10:19]} {[%emt 00:01:37]} c4
{[%clk 00:01:26]} {[%emt 00:02:25]} 27. Bf2 {[%clk 00:10:13]} {[%emt 00:00:35]}
Qb4 {[%clk 00:01:03]} {[%emt 00:00:53]} 28. Nc6 {[%clk 00:09:26]} {[%emt
00:01:18]} Qd6 {[%clk 00:01:19]} {[%emt 00:00:13]} 29. Ne5 {[%clk 00:09:33]}
{[%emt 00:00:24]} Ne4 {[%clk 00:01:12]} {[%emt 00:00:36]} 30. Nxc4 {[%clk
00:07:20]} {[%emt 00:02:43]} Qb4 {[%clk 00:00:47]} {[%emt 00:00:54]} 31. Nxe4
{[%clk 00:07:19]} {[%emt 00:00:31]} fxe4 {[%clk 00:00:58]} {[%emt 00:00:20]} 32.
Qxb4 {[%clk 00:07:41]} {[%emt 00:00:08]} 1-0

[Event "Swedish Chess Championship 2019: Veteran-SM 65+"]
[Site "Stiga Sports Arena, Arenatorget 1, Eskilstuna, Sweden"]
[Date "2019.07.10"]
[Round "5.3"]
[White "Lagerborg, Krister"]
[Black "Moborn, Anders"]
[Result "1-0"]
[TimeControl "90 minutes for 40 moves + 30 minutes for the rest of the game + 30 seconds per move from move one"]
[WhiteFideId "1712411"]
[BlackFideId "1706349"]
[WhiteElo "2129"]
[BlackElo "2034"]

1. e4 {[%clk 01:30:55]} {[%emt 00:00:05]} e6 {[%clk 01:30:48]} {[%emt
00:00:19]} 2. Qe2 {[%clk 01:31:18]} {[%emt 00:00:16]} c5 {[%clk 01:30:36]}
{[%emt 00:01:53]} 3. f4 {[%clk 01:31:38]} {[%emt 00:00:30]} Nc6 {[%clk
01:30:11]} {[%emt 00:03:34]} 4. c3 {[%clk 01:32:01]} d5 {[%clk 01:29:26]} 5. d3
{[%clk 01:32:21]} Nf6 {[%clk 01:24:05]} {[%emt 00:02:56]} 6. e5 {[%clk
01:32:43]} {[%emt 00:00:08]} Nd7 {[%clk 01:24:27]} {[%emt 00:00:09]} 7. Nf3
{[%clk 01:33:05]} {[%emt 00:00:07]} b5 {[%clk 01:22:23]} {[%emt 00:02:35]} 8.
g3 {[%clk 01:32:56]} {[%emt 00:00:38]} c4 {[%clk 01:16:01]} {[%emt 00:06:52]} 9.
d4 {[%clk 01:31:16]} {[%emt 00:02:09]} b4 {[%clk 01:14:11]} {[%emt 00:02:21]}
10. Bg2 {[%clk 01:31:11]} {[%emt 00:00:35]} Qb6 {[%clk 01:11:05]} {[%emt
00:03:37]} 11. f5 {[%clk 01:28:49]} {[%emt 00:02:51]} Be7 {[%clk 01:06:04]}
{[%emt 00:05:31]} 12. fxe6 {[%clk 01:27:14]} {[%emt 00:02:05]} fxe6 {[%clk
01:06:02]} {[%emt 00:00:32]} 13. Bh3 {[%clk 01:23:25]} {[%emt 00:04:19]} Nf8
{[%clk 01:04:39]} {[%emt 00:01:53]} 14. O-O {[%clk 01:22:23]} {[%emt 00:01:32]}
a5 {[%clk 01:01:24]} {[%emt 00:03:45]} 15. Bg5 {[%clk 01:17:15]} {[%emt
00:05:37]} Ra7 {[%clk 00:58:34]} {[%emt 00:03:21]} 16. a3 {[%clk 01:11:54]}
{[%emt 00:05:52]} b3 {[%clk 00:46:38]} {[%emt 00:12:25]} 17. Nbd2 {[%clk
01:07:29]} {[%emt 00:04:54]} Nd8 {[%clk 00:37:49]} {[%emt 00:09:20]} 18. Rf2
{[%clk 01:04:17]} {[%emt 00:03:41]} Bxg5 {[%clk 00:29:29]} {[%emt 00:08:51]} 19.
Nxg5 {[%clk 01:04:36]} {[%emt 00:00:11]} Re7 {[%clk 00:29:48]} {[%emt
00:00:11]} 20. Raf1 {[%clk 00:59:58]} {[%emt 00:05:08]} g6 {[%clk 00:27:41]}
{[%emt 00:02:38]} 21. Nde4 {[%clk 00:53:25]} {[%emt 00:07:02]} dxe4 {[%clk
00:25:58]} {[%emt 00:02:13]} 22. Nxe4 {[%clk 00:52:41]} {[%emt 00:01:13]} Nb7
{[%clk 00:24:23]} {[%emt 00:02:05]} 23. Qxc4 {[%clk 00:41:46]} {[%emt
00:11:25]} Rc7 {[%clk 00:21:20]} {[%emt 00:03:33]} 24. Qd3 {[%clk 00:39:30]}
{[%emt 00:02:45]} Rg7 {[%clk 00:15:17]} {[%emt 00:06:34]} 25. Rf6 {[%clk
00:37:25]} {[%emt 00:02:35]} g5 {[%clk 00:07:12]} {[%emt 00:08:35]} 26. Qf3
{[%clk 00:35:08]} {[%emt 00:02:46]} Ng6 {[%clk 00:07:16]} {[%emt 00:00:26]} 27.
Bg4 {[%clk 00:35:25]} {[%emt 00:00:14]} Nxe5 {[%clk 00:06:45]} {[%emt
00:01:01]} 28. Rf8+ {[%clk 00:35:18]} {[%emt 00:00:37]} Kd7 {[%clk 00:05:08]}
{[%emt 00:02:07]} 29. Qf6 {[%clk 00:33:03]} {[%emt 00:02:44]} 1-0